[Event "11th LCC Super Blitz 2019"]
[Site "London"]
[Date "2019.12.08"]
[Round "5.6"]
[White "Watson, Mikey J"]
[Black "Davis, Holden"]
[Result "1/2-1/2"]
[ECO "C02"]
[WhiteElo "1748"]
[BlackElo "1769"]
[Annotator "NA"]
[PlyCount "123"]
[EventDate "2019.12.08"]
[EventType "swiss"]
[EventCountry "ENG"]
[SourceTitle "playchess.com"]
[Source "ChessBase"]
[SourceQuality "1"]
[TimeControl "180+2"]

1. e4 {[%emt 0:00:00]} e6 {[%emt 0:00:00]} 2. d4 {[%emt 0:00:00]} d5 {[%emt 0:00:00]} 3. e5 {[%emt 0:00:01]} c5 {[%emt 0:00:01]} 4. c3 {[%emt 0:00:01]} Nc6 {[%emt 0:00:01]} 5. Nf3 {[%emt 0:00:01]} Qb6 {[%emt 0:00:01]} 6. Bd3 {[%emt 0:00:00]} Bd7 {[%emt 0:00:01]} 7. O-O {[%emt 0:00:03]} Rc8 {[%emt 0:00:01]} 8. a4 {[%emt 0:00:13]} c4 {[%emt 0:00:03]} 9. Bc2 {[%emt 0:00:04]} Na5 {[%emt 0:00:01]} 10. Nbd2 {[%emt 0:00:02]} Ne7 {[%emt 0:00:03]} 11. Re1 {[%emt 0:00:03]} h5 {[%emt 0:00:04]} 12. Nf1 {[%emt 0:00:08]} Nf5 {[%emt 0:00:05]} 13. Bf4 {[%emt 0:00:03]} g6 {[%emt 0:00:02]} 14. Ne3 {[%emt 0:00:10]} Nb3 {[%emt 0:00:14]} 15. Ra2 {[%emt 0:00:10]} a5 {[%emt 0:00:04]} 16. Nxf5 {[%emt 0:00:09]} gxf5 {[%emt 0:00:02]} 17. h4 {[%emt 0:00:17]} Be7 {[%emt 0:00:02]} 18. Bg5 {[%emt 0:00:04]} Bc6 {[%emt 0:00:23]} 19. Qe2 {[%emt 0:00:13]} Qc7 {[%emt 0:00:02]} 20. Qe3 {[%emt 0:00:05]} Qd7 {[%emt 0:00:02]} 21. Bxe7 {[%emt 0:00:20]} Qxe7 {[%emt 0:00:01]} 22. Ra3 {[%emt 0:00:06]} Rg8 {[%emt 0:00:22]} 23. Bxb3 {[%emt 0:00:03]} cxb3 {[%emt 0:00:01]} 24. Rxb3 {[%emt 0:00:05]} Bxa4 {[%emt 0:00:09]} 25. Ra3 {[%emt 0:00:00]} Bc2 {[%emt 0:00:01]} 26. Rxa5 {[%emt 0:00:05]} Be4 {[%emt 0:00:01]} 27. Ng5 {[%emt 0:00:14]} Qc7 {[%emt 0:00:22]} 28. Rea1 {[%emt 0:00:02]} Qb6 {[%emt 0:00:09]} 29. Ra8 {[%emt 0:00:12]} Ke7 {[%emt 0:00:01]} 30. Rxc8 {[%emt 0:00:05]} Rxc8 {[%emt 0:00:02]} 31. Nxe4 {[%emt 0:00:01]} dxe4 {[%emt 0:00:04]} 32. Qg5+ {[%emt 0:00:03]} Kd7 {[%emt 0:00:04]} 33. Qxh5 {[%emt 0:00:10]} Ke8 {[%emt 0:00:15]} 34. Qh8+ {[%emt 0:00:07]} Kd7 {[%emt 0:00:00]} 35. Qf6 {[%emt 0:00:02]} Qxb2 {[%emt 0:00:10]} 36. Qxf7+ {[%emt 0:00:02]} Kd8 {[%emt 0:00:01]} 37. Qf8+ {[%emt 0:00:11]} Kd7 {[%emt 0:00:09]} 38. Qd6+ {[%emt 0:00:01]} Ke8 {[%emt 0:00:01]} 39. Qxe6+ {[%emt 0:00:02]} Kd8 {[%emt 0:00:00]} 40. Qf6+ {[%emt 0:00:17]} Ke8 {[%emt 0:00:05]} 41. Qg6+ {[%emt 0:00:04]} Kd8 {[%emt 0:00:03]} 42. Qg8+ {[%emt 0:00:04]} Kd7 {[%emt 0:00:05]} 43. Qd5+ {[%emt 0:00:03]} Ke8 {[%emt 0:00:03]} 44. Qe6+ {[%emt 0:00:13]} Kd8 {[%emt 0:00:02]} 45. Qf6+ {[%emt 0:00:06]} Ke8 {[%emt 0:00:02]} 46. Qg6+ {[%emt 0:00:01]} Kd8 {[%emt 0:00:04]} 47. Qg5+ {[%emt 0:00:02]} Ke8 {[%emt 0:00:03]} 48. Ra5 {[%emt 0:00:01]} Qxc3 {[%emt 0:00:07]} 49. Rc5 {[%emt 0:00:02]} Qe1+ {[%emt 0:00:07]} 50. Kh2 {[%emt 0:00:01]} Rxc5 {[%emt 0:00:01]} 51. dxc5 {[%emt 0:00:01]} Qxf2 {[%emt 0:00:01]} 52. Qg6+ {[%emt 0:00:02]} Ke7 {[%emt 0:00:03]} 53. Qf6+ {[%emt 0:00:01]} Ke8 {[%emt 0:00:02]} 54. h5 {[%emt 0:00:02]} Qf4+ {[%emt 0:00:03]} 55. g3 {[%emt 0:00:02]} Qf2+ {[%emt 0:00:02]} 56. Kh3 {[%emt 0:00:01]} Qf1+ {[%emt 0:00:03]} 57. Kh4 {[%emt 0:00:01]} e3 {[%emt 0:00:05]} 58. Qe6+ {[%emt 0:00:06]} Kd8 {[%emt 0:00:01]} 59. Qd6+ {[%emt 0:00:01]} Ke8 {[%emt 0:00:00]} 60. Qg6+ {[%emt 0:00:06]} Kd8 {[%emt 0:00:01]} 61. Qd6+ {[%emt 0:00:03]} Ke8 {[%emt 0:00:01]} 62. Qe6+ {[%emt 0:00:01]} 1/2-1/2

[Event "11th LCC Super Blitz 2019"]
[Site "London"]
[Date "2019.12.08"]
[Round "5.7"]
[White "Orlovska, Madara"]
[Black "Jackson, Julius"]
[Result "1/2-1/2"]
[ECO "D01"]
[WhiteElo "2072"]
[BlackElo "1584"]
[Annotator "NA"]
[PlyCount "142"]
[EventDate "2019.12.08"]
[EventType "swiss"]
[EventCountry "ENG"]
[SourceTitle "playchess.com"]
[Source "ChessBase"]
[SourceQuality "1"]
[TimeControl "180+2"]

1. d4 {[%emt 0:00:00]} Nf6 {[%emt 0:00:00]} 2. Nc3 {[%emt 0:00:02]} d5 {[%emt 0:00:00]} 3. Bg5 {[%emt 0:00:02]} Bf5 {[%emt 0:00:03]} 4. Qd2 {[%emt 0:00:02]} e6 {[%emt 0:00:04]} 5. f3 {[%emt 0:00:01]} Nc6 {[%emt 0:00:06]} 6. g4 {[%emt 0:00:02]} Bg6 {[%emt 0:00:02]} 7. h4 {[%emt 0:00:01]} h5 {[%emt 0:00:03]} 8. O-O-O {[%emt 0:00:28]} Be7 {[%emt 0:00:01]} 9. gxh5 {[%emt 0:00:15]} Nxh5 {[%emt 0:00:17]} 10. Bxe7 {[%emt 0:00:17]} Qxe7 {[%emt 0:00:01]} 11. Qg5 {[%emt 0:00:10]} Qxg5+ {[%emt 0:00:21]} 12. hxg5 {[%emt 0:00:01]} O-O-O {[%emt 0:00:02]} 13. e3 {[%emt 0:00:15]} Nb4 {[%emt 0:00:18]} 14. Bd3 {[%emt 0:00:03]} Nxd3+ {[%emt 0:00:07]} 15. cxd3 {[%emt 0:00:02]} Ng3 {[%emt 0:00:08]} 16. Rxh8 {[%emt 0:00:02]} Rxh8 {[%emt 0:00:01]} 17. Nge2 {[%emt 0:00:01]} Nxe2+ {[%emt 0:00:13]} 18. Nxe2 {[%emt 0:00:02]} Rh2 {[%emt 0:00:03]} 19. Nf4 {[%emt 0:00:19]} Rf2 {[%emt 0:00:12]} 20. Rg1 {[%emt 0:00:20]} Rxf3 {[%emt 0:00:04]} 21. Kd2 {[%emt 0:00:01]} Rf2+ {[%emt 0:00:04]} 22. Kc3 {[%emt 0:00:02]} a5 {[%emt 0:00:10]} 23. a3 {[%emt 0:00:06]} Rf3 {[%emt 0:00:12]} 24. Kd2 {[%emt 0:00:03]} Rf2+ {[%emt 0:00:02]} 25. Kc3 {[%emt 0:00:12]} Rf3 {[%emt 0:00:05]} 26. Kd2 {[%emt 0:00:23]} Rf2+ {[%emt 0:00:02]} 27. Ne2 {[%emt 0:00:01]} b6 {[%emt 0:00:18]} 28. Ke1 {[%emt 0:00:04]} Rh2 {[%emt 0:00:13]} 29. Kd2 {[%emt 0:00:16]} Kd7 {[%emt 0:00:05]} 30. e4 {[%emt 0:00:07]} dxe4 {[%emt 0:00:06]} 31. dxe4 {[%emt 0:00:01]} Bxe4 {[%emt 0:00:03]} 32. Ke3 {[%emt 0:00:01]} Bf5 {[%emt 0:00:07]} 33. Ng3 {[%emt 0:00:02]} Rxb2 {[%emt 0:00:03]} 34. Nxf5 {[%emt 0:00:01]} exf5 {[%emt 0:00:01]} 35. Rf1 {[%emt 0:00:00]} g6 {[%emt 0:00:02]} 36. Kf4 {[%emt 0:00:03]} Kd6 {[%emt 0:00:07]} 37. Rd1 {[%emt 0:00:01]} Rb3 {[%emt 0:00:03]} 38. a4 {[%emt 0:00:01]} Ra3 {[%emt 0:00:01]} 39. Rh1 {[%emt 0:00:03]} Rxa4 {[%emt 0:00:03]} 40. Ke3 {[%emt 0:00:00]} f4+ {[%emt 0:00:06]} 41. Kxf4 {[%emt 0:00:01]} Rxd4+ {[%emt 0:00:00]} 42. Ke3 {[%emt 0:00:00]} Rc4 {[%emt 0:00:02]} 43. Rf1 {[%emt 0:00:01]} Ke6 {[%emt 0:00:03]} 44. Rf6+ {[%emt 0:00:01]} Ke7 {[%emt 0:00:03]} 45. Kd3 {[%emt 0:00:00]} Rb4 {[%emt 0:00:01]} 46. Rc6 {[%emt 0:00:01]} Kd7 {[%emt 0:00:11]} 47. Rf6 {[%emt 0:00:01]} Rb3+ {[%emt 0:00:03]} 48. Kc4 {[%emt 0:00:03]} Rg3 {[%emt 0:00:02]} 49. Rxf7+ {[%emt 0:00:01]} Ke6 {[%emt 0:00:03]} 50. Rf6+ {[%emt 0:00:01]} Kd7 {[%emt 0:00:04]} 51. Rxg6 {[%emt 0:00:01]} a4 {[%emt 0:00:01]} 52. Rg7+ {[%emt 0:00:03]} Kc8 {[%emt 0:00:03]} 53. g6 {[%emt 0:00:02]} a3 {[%emt 0:00:01]} 54. Rg8+ {[%emt 0:00:01]} Kd7 {[%emt 0:00:02]} 55. g7 {[%emt 0:00:00]} Ke7 {[%emt 0:00:02]} 56. Kb4 {[%emt 0:00:04]} a2 {[%emt 0:00:01]} 57. Ra8 {[%emt 0:00:01]} Rg2 {[%emt 0:00:02]} 58. Rxa2 {[%emt 0:00:03]} Rxg7 {[%emt 0:00:04]} 59. Kb5 {[%emt 0:00:02]} Rg5+ {[%emt 0:00:03]} 60. Kc4 {[%emt 0:00:02]} b5+ {[%emt 0:00:02]} 61. Kb4 {[%emt 0:00:01]} Kd6 {[%emt 0:00:02]} 62. Rd2+ {[%emt 0:00:01]} Kc6 {[%emt 0:00:01]} 63. Rc2+ {[%emt 0:00:01]} Kb7 {[%emt 0:00:01]} 64. Rf2 {[%emt 0:00:00]} Ka6 {[%emt 0:00:02]} 65. Rf6+ {[%emt 0:00:01]} Kb7 {[%emt 0:00:01]} 66. Rf7 {[%emt 0:00:02]} Kc6 {[%emt 0:00:02]} 67. Rf6+ {[%emt 0:00:01]} Kb7 {[%emt 0:00:00]} 68. Rf7 {[%emt 0:00:01]} Kc6 {[%emt 0:00:01]} 69. Rf6+ {[%emt 0:00:00]} Kb7 {[%emt 0:00:01]} 70. Rf7 {[%emt 0:00:01]} Kb6 {[%emt 0:00:07]} 71. Rf6+ Kb7 {[%emt 0:00:04]} 1/2-1/2

[Event "11th LCC Super Blitz 2019"]
[Site "London"]
[Date "2019.12.08"]
[Round "5.7"]
[White "Kirupakaran, Vishnu"]
[Black "Petrov, Vladimir Sergeev"]
[Result "0-1"]
[ECO "B90"]
[WhiteElo "1871"]
[BlackElo "2355"]
[Annotator "NA"]
[PlyCount "76"]
[EventDate "2019.12.08"]
[EventType "swiss"]
[EventCountry "ENG"]
[SourceTitle "playchess.com"]
[Source "ChessBase"]
[SourceQuality "1"]
[TimeControl "180+2"]

1. e4 {[%emt 0:00:00]} c5 {[%emt 0:00:00]} 2. Nf3 {[%emt 0:00:02]} d6 {[%emt 0:00:00]} 3. d4 {[%emt 0:00:03]} cxd4 {[%emt 0:00:00]} 4. Nxd4 {[%emt 0:00:02]} Nf6 5. Nc3 {[%emt 0:00:03]} a6 {[%emt 0:00:01]} 6. Be3 {[%emt 0:00:06]} e5 {[%emt 0:00:01]} 7. Nb3 {[%emt 0:00:02]} Be6 {[%emt 0:00:03]} 8. Qd2 {[%emt 0:00:08]} Be7 {[%emt 0:00:03]} 9. f3 {[%emt 0:00:04]} O-O {[%emt 0:00:05]} 10. O-O-O {[%emt 0:00:03]} Nbd7 {[%emt 0:00:01]} 11. g4 {[%emt 0:00:02]} b5 {[%emt 0:00:01]} 12. g5 {[%emt 0:00:03]} b4 {[%emt 0:00:01]} 13. gxf6 {[%emt 0:00:14]} bxc3 {[%emt 0:00:02]} 14. Qxc3 {[%emt 0:00:01]} Nxf6 {[%emt 0:00:08]} 15. Na5 {[%emt 0:00:03]} Rc8 {[%emt 0:00:06]} 16. Nc6 {[%emt 0:00:01]} Qd7 {[%emt 0:00:01]} 17. Nxe7+ Qxe7 {[%emt 0:00:02]} 18. Qa5 {[%emt 0:00:04]} Rc6 {[%emt 0:00:01]} 19. Kb1 {[%emt 0:00:01]} Rfc8 {[%emt 0:00:10]} 20. Bd3 {[%emt 0:00:41]} d5 {[%emt 0:00:24]} 21. Rhg1 {[%emt 0:00:20]} d4 {[%emt 0:00:34]} 22. Bh6 {[%emt 0:00:10]} g6 {[%emt 0:00:08]} 23. Bg5 {[%emt 0:00:54]} Bc4 {[%emt 0:01:20]} 24. Bxc4 {[%emt 0:00:30]} Rxc4 {[%emt 0:00:01]} 25. Rc1 {[%emt 0:00:01]} R4c6 {[%emt 0:00:08]} 26. h4 {[%emt 0:00:03]} Qc7 {[%emt 0:00:05]} 27. Qd2 {[%emt 0:00:03]} Nd7 {[%emt 0:00:05]} 28. h5 {[%emt 0:00:02]} Rb6 {[%emt 0:00:06]} 29. hxg6 {[%emt 0:00:03]} fxg6 {[%emt 0:00:04]} 30. Bh6 {[%emt 0:00:03]} Qc3 {[%emt 0:00:02]} 31. Qxc3 {[%emt 0:00:05]} Rxc3 {[%emt 0:00:02]} 32. Rcf1 {[%emt 0:00:04]} Rc8 {[%emt 0:00:05]} 33. f4 {[%emt 0:00:02]} exf4 {[%emt 0:00:02]} 34. Bxf4 {[%emt 0:00:01]} Re8 {[%emt 0:00:01]} 35. Re1 {[%emt 0:00:02]} Rbe6 {[%emt 0:00:01]} 36. Bd2 {[%emt 0:00:03]} Rxe4 {[%emt 0:00:01]} 37. Rxe4 {[%emt 0:00:02]} Rxe4 {[%emt 0:00:02]} 38. b3 {[%emt 0:00:03]} Kg7 {[%emt 0:00:03]} 0-1

[Event "11th LCC Super Blitz 2019"]
[Site "London"]
[Date "2019.12.08"]
[Round "5.8"]
[White "Pappelis, Dimitrios"]
[Black "Kennedy, Craig"]
[Result "1-0"]
[ECO "A41"]
[WhiteElo "2160"]
[BlackElo "1899"]
[Annotator "NA"]
[PlyCount "54"]
[EventDate "2019.12.08"]
[EventType "swiss"]
[EventCountry "ENG"]
[SourceTitle "playchess.com"]
[Source "ChessBase"]
[SourceQuality "1"]
[TimeControl "180+2"]

1. Nf3 {[%emt 0:00:00]} g6 {[%emt 0:00:00]} 2. g3 {[%emt 0:00:02]} Bg7 {[%emt 0:00:01]} 3. d4 {[%emt 0:00:05]} d6 {[%emt 0:00:04]} 4. Bg2 {[%emt 0:00:06]} Nd7 {[%emt 0:00:05]} 5. O-O {[%emt 0:00:00]} e5 {[%emt 0:00:04]} 6. Nc3 {[%emt 0:00:08]} f5 {[%emt 0:00:06]} 7. dxe5 {[%emt 0:00:15]} dxe5 {[%emt 0:00:03]} 8. Bg5 {[%emt 0:00:05]} Ngf6 {[%emt 0:00:06]} 9. e4 {[%emt 0:00:06]} h6 {[%emt 0:00:17]} 10. Bxf6 {[%emt 0:00:01]} Qxf6 {[%emt 0:00:12]} 11. exf5 {[%emt 0:00:18]} gxf5 {[%emt 0:00:03]} 12. Nd5 {[%emt 0:00:29]} Qd6 {[%emt 0:00:04]} 13. Nh4 {[%emt 0:00:03]} O-O {[%emt 0:00:09]} 14. Qh5 {[%emt 0:00:22]} c6 {[%emt 0:00:03]} 15. Rad1 {[%emt 0:00:05]} Nf6 {[%emt 0:00:29]} 16. Nxf6+ {[%emt 0:00:20]} Qxf6 {[%emt 0:00:02]} 17. Rfe1 {[%emt 0:00:20]} Be6 {[%emt 0:00:12]} 18. Rd6 {[%emt 0:00:05]} Rfd8 {[%emt 0:00:06]} 19. Red1 {[%emt 0:00:06]} Rxd6 {[%emt 0:00:03]} 20. Rxd6 {[%emt 0:00:01]} Rd8 {[%emt 0:00:14]} 21. Qd1 {[%emt 0:00:09]} Rxd6 {[%emt 0:00:02]} 22. Qxd6 {[%emt 0:00:02]} Qf7 {[%emt 0:00:07]} 23. Nf3 {[%emt 0:00:08]} e4 {[%emt 0:00:12]} 24. Ne5 {[%emt 0:00:07]} Bxe5 {[%emt 0:00:02]} 25. Qxe5 {[%emt 0:00:02]} a6 {[%emt 0:00:09]} 26. h4 {[%emt 0:00:10]} Qd7 {[%emt 0:00:09]} 27. Qf6 {[%emt 0:00:00]} Kh7 {[%emt 0:00:03]} 1-0

[Event "11th LCC Super Blitz 2019"]
[Site "London"]
[Date "2019.12.08"]
[Round "5.8"]
[White "Balaji, Aaravamudhan"]
[Black "Onslow, Teddy"]
[Result "0-1"]
[ECO "D43"]
[WhiteElo "2120"]
[BlackElo "1647"]
[Annotator "NA"]
[PlyCount "120"]
[EventDate "2019.12.08"]
[EventType "swiss"]
[EventCountry "ENG"]
[SourceTitle "playchess.com"]
[Source "ChessBase"]
[SourceQuality "1"]
[TimeControl "180+2"]

1. d4 {[%emt 0:06:02]} d5 2. c4 e6 3. Nc3 Nf6 4. Nf3 c6 5. Qd3 Bd6 {[%emt 0:00:03]} 6. e4 dxe4 {[%emt 0:00:07]} 7. Nxe4 {[%emt 0:00:01]} Nxe4 8. Qxe4 Bb4+ {[%emt 0:00:02]} 9. Bd2 {[%emt 0:00:01]} Bxd2+ {[%emt 0:00:02]} 10. Nxd2 {[%emt 0:00:01]} Nd7 {[%emt 0:00:04]} 11. Bd3 {[%emt 0:00:01]} Nf6 12. Qh4 {[%emt 0:00:01]} h6 {[%emt 0:00:16]} 13. Nb3 {[%emt 0:00:16]} O-O {[%emt 0:00:17]} 14. O-O-O {[%emt 0:00:03]} a5 {[%emt 0:00:03]} 15. g4 {[%emt 0:00:17]} Nh7 {[%emt 0:00:06]} 16. Qxd8 {[%emt 0:00:11]} Rxd8 17. f4 {[%emt 0:00:04]} a4 {[%emt 0:00:04]} 18. Nc5 {[%emt 0:00:04]} b6 19. Bxh7+ {[%emt 0:00:19]} Kxh7 {[%emt 0:00:02]} 20. Ne4 {[%emt 0:00:04]} Ba6 {[%emt 0:00:02]} 21. c5 bxc5 {[%emt 0:00:57]} 22. dxc5 {[%emt 0:00:04]} Bc4 {[%emt 0:00:16]} 23. a3 {[%emt 0:00:36]} Bb3 24. Rxd8 {[%emt 0:00:07]} Rxd8 {[%emt 0:00:01]} 25. Nd6 Kg6 {[%emt 0:00:21]} 26. h4 {[%emt 0:00:01]} Kf6 {[%emt 0:00:03]} 27. g5+ {[%emt 0:00:20]} Ke7 {[%emt 0:00:25]} 28. Rg1 {[%emt 0:00:20]} Kf8 {[%emt 0:00:02]} 29. Kd2 {[%emt 0:00:06]} Rb8 {[%emt 0:00:10]} 30. Kc3 {[%emt 0:00:04]} Bd5 {[%emt 0:00:02]} 31. Kc2 {[%emt 0:00:36]} Rb3 {[%emt 0:00:07]} 32. gxh6 {[%emt 0:00:11]} gxh6 33. Rd1 {[%emt 0:00:06]} Rh3 {[%emt 0:00:06]} 34. Rd4 {[%emt 0:00:02]} Bb3+ {[%emt 0:00:04]} 35. Kd2 Rxh4 {[%emt 0:00:04]} 36. Nb7 {[%emt 0:00:04]} Rh2+ {[%emt 0:00:02]} 37. Kc1 {[%emt 0:00:02]} h5 {[%emt 0:00:06]} 38. Na5 {[%emt 0:00:02]} h4 {[%emt 0:00:01]} 39. Nxb3 {[%emt 0:00:03]} axb3 40. Rd1 Rc2+ {[%emt 0:00:02]} 41. Kb1 Rxc5 {[%emt 0:00:01]} 42. Rh1 Rh5 {[%emt 0:00:02]} 43. Kc1 Ke7 {[%emt 0:00:01]} 44. Kd2 Kd6 {[%emt 0:00:02]} 45. Kc3 Kd5 {[%emt 0:00:01]} 46. a4 {[%emt 0:00:08]} h3 {[%emt 0:00:03]} 47. a5 {[%emt 0:00:02]} Kc5 48. Kxb3 {[%emt 0:00:03]} Kb5 49. Kc3 {[%emt 0:00:02]} h2 {[%emt 0:00:02]} 50. Kd4 Kxa5 {[%emt 0:00:02]} 51. Ke4 Kb4 {[%emt 0:00:02]} 52. Kf3 Kb3 {[%emt 0:00:01]} 53. Kg4 Rh8 {[%emt 0:00:02]} 54. Kg5 Kxb2 {[%emt 0:00:02]} 55. Kf6 Rh4 {[%emt 0:00:03]} 56. Ke5 {[%emt 0:00:02]} c5 {[%emt 0:00:03]} 57. f5 {[%emt 0:00:07]} exf5 {[%emt 0:00:02]} 58. Kd5 c4 59. Kc5 {[%emt 0:00:02]} c3 60. Kb5 c2 {[%emt 0:00:06]} 0-1

[Event "11th LCC Super Blitz 2019"]
[Site "London"]
[Date "2019.12.08"]
[Round "5.8"]
[White "Nettleton, Charlie B"]
[Black "Srivastava, Arnav"]
[Result "1-0"]
[ECO "C46"]
[WhiteElo "2021"]
[BlackElo "1728"]
[Annotator "NA"]
[PlyCount "53"]
[EventDate "2019.12.08"]
[EventType "swiss"]
[EventCountry "ENG"]
[SourceTitle "playchess.com"]
[Source "ChessBase"]
[SourceQuality "1"]
[TimeControl "180+2"]

1. e4 {[%emt 0:00:01]} e5 {[%emt 0:00:00]} 2. Nc3 {[%emt 0:00:01]} Bc5 {[%emt 0:00:00]} 3. Nf3 {[%emt 0:00:07]} Nc6 {[%emt 0:00:02]} 4. Nxe5 {[%emt 0:00:07]} Bxf2+ {[%emt 0:00:25]} 5. Kxf2 {[%emt 0:00:02]} Nxe5 {[%emt 0:00:01]} 6. d4 {[%emt 0:00:01]} Ng6 {[%emt 0:00:02]} 7. Bc4 {[%emt 0:00:05]} d6 {[%emt 0:00:02]} 8. Rf1 {[%emt 0:00:05]} Nf6 {[%emt 0:00:02]} 9. Bd2 {[%emt 0:00:16]} O-O {[%emt 0:00:06]} 10. Kg1 {[%emt 0:00:00]} a6 {[%emt 0:00:05]} 11. a4 {[%emt 0:00:03]} c5 {[%emt 0:00:09]} 12. Bg5 {[%emt 0:00:03]} Be6 {[%emt 0:00:22]} 13. Bd5 {[%emt 0:00:19]} h6 {[%emt 0:00:21]} 14. Bxf6 {[%emt 0:00:03]} gxf6 {[%emt 0:00:01]} 15. dxc5 {[%emt 0:00:02]} dxc5 {[%emt 0:00:03]} 16. Qh5 {[%emt 0:00:05]} Kg7 {[%emt 0:00:02]} 17. Rad1 {[%emt 0:00:02]} Qc7 {[%emt 0:00:06]} 18. Qf3 {[%emt 0:00:12]} Qe5 {[%emt 0:00:03]} 19. g3 {[%emt 0:00:17]} h5 {[%emt 0:00:05]} 20. Bxe6 {[%emt 0:00:04]} fxe6 {[%emt 0:00:02]} 21. Rd7+ {[%emt 0:00:02]} Kg8 {[%emt 0:00:07]} 22. Qe3 {[%emt 0:00:04]} Qg5 {[%emt 0:00:05]} 23. Qxg5 {[%emt 0:00:08]} fxg5 {[%emt 0:00:01]} 24. Rxf8+ {[%emt 0:00:09] Rb8 Re8+ Rxe8 Rxb7 Rd8 Rb6} Nxf8 {[%emt 0:00:06] Rxa6} 25. Rd2 {[%emt 0:00:02] Rb6 Rxc2} a5 {[%emt 0:00:13] Rc1+} 26. Kf2 {[%emt 0:00:10] Ra1 a6} Nd7 {[%emt 0:00:13] Rxe6 Kf7 Rc6 Nb8 Rc7+ Ke6 a7 Nd7} 27. Nd5 {[%emt 0:00:06] Ra2 Rxd7} 1-0

[Event "11th LCC Super Blitz 2019"]
[Site "London"]
[Date "2019.12.08"]
[Round "5.9"]
[White "Ismail, Mohammed Aayan"]
[Black "Stamatopoulos, Apostolos"]
[Result "1-0"]
[ECO "B59"]
[WhiteElo "1641"]
[BlackElo "1782"]
[Annotator "NA"]
[PlyCount "125"]
[EventDate "2019.12.08"]
[EventType "swiss"]
[EventCountry "ENG"]
[SourceTitle "playchess.com"]
[Source "ChessBase"]
[SourceQuality "1"]
[TimeControl "180+2"]

1. e4 {[%emt 0:05:40]} c5 {[%emt 0:00:02]} 2. Nf3 d6 {[%emt 0:00:01]} 3. d4 cxd4 4. Nxd4 {[%emt 0:00:03]} Nf6 5. Nc3 {[%emt 0:00:01]} Nc6 6. Be3 e5 {[%emt 0:00:01]} 7. Nb3 {[%emt 0:00:04]} Be6 8. Be2 {[%emt 0:00:09]} Be7 9. O-O {[%emt 0:00:11]} O-O {[%emt 0:00:02]} 10. h3 {[%emt 0:00:12]} d5 {[%emt 0:00:01]} 11. exd5 {[%emt 0:00:05]} Nxd5 {[%emt 0:00:02]} 12. Nxd5 {[%emt 0:00:02]} Bxd5 {[%emt 0:00:01]} 13. c4 {[%emt 0:00:20]} Be6 {[%emt 0:00:09]} 14. Nc5 {[%emt 0:00:09]} Bxc5 {[%emt 0:00:47]} 15. Bxc5 {[%emt 0:00:01]} Re8 16. Qb3 {[%emt 0:00:15]} b6 {[%emt 0:00:17]} 17. Be3 {[%emt 0:00:30]} Qc7 {[%emt 0:00:02]} 18. Rac1 {[%emt 0:00:15]} f5 {[%emt 0:00:16]} 19. f4 {[%emt 0:00:10]} e4 {[%emt 0:00:06]} 20. Qc3 {[%emt 0:00:03]} Rac8 {[%emt 0:00:23]} 21. Rfd1 {[%emt 0:00:17]} Na5 {[%emt 0:00:04]} 22. b3 {[%emt 0:00:04]} Nb7 {[%emt 0:00:08]} 23. Rd4 {[%emt 0:00:15]} b5 {[%emt 0:00:08]} 24. c5 {[%emt 0:00:13]} a6 {[%emt 0:00:44]} 25. b4 {[%emt 0:00:07]} Nd8 {[%emt 0:00:15]} 26. a4 {[%emt 0:00:12]} Nc6 {[%emt 0:00:04]} 27. Rd6 {[%emt 0:00:01]} bxa4 {[%emt 0:00:13]} 28. Bxa6 {[%emt 0:00:01]} Rcd8 29. Rxe6 {[%emt 0:00:05]} Rxe6 {[%emt 0:00:02]} 30. Bc4 Qe7 {[%emt 0:00:03]} 31. Bxe6+ {[%emt 0:00:02]} Qxe6 32. b5 {[%emt 0:00:03]} Ne7 {[%emt 0:00:03]} 33. c6 {[%emt 0:00:03]} Nd5 {[%emt 0:00:01]} 34. Qc4 Kf8 {[%emt 0:00:07]} 35. c7 {[%emt 0:00:04]} Rc8 {[%emt 0:00:02]} 36. b6 {[%emt 0:00:02]} Nxc7 {[%emt 0:00:03]} 37. bxc7 {[%emt 0:00:02]} Qxc4 {[%emt 0:00:02]} 38. Rxc4 a3 {[%emt 0:00:01]} 39. Bc5+ Ke8 40. Bxa3 {[%emt 0:00:01]} Kd7 41. Rc1 {[%emt 0:00:03]} Ke6 {[%emt 0:00:02]} 42. Kf2 {[%emt 0:00:01]} h6 {[%emt 0:00:03]} 43. Ke3 {[%emt 0:00:01]} g5 44. g3 Kd5 {[%emt 0:00:03]} 45. Rd1+ {[%emt 0:00:02]} Ke6 {[%emt 0:00:02]} 46. Rd6+ {[%emt 0:00:01]} Kf7 {[%emt 0:00:03]} 47. Rxh6 {[%emt 0:00:02]} Kg7 {[%emt 0:00:01]} 48. Rc6 {[%emt 0:00:02]} gxf4+ 49. gxf4 {[%emt 0:00:01]} Kf7 50. Bd6 {[%emt 0:00:01]} Ke6 {[%emt 0:00:02]} 51. Be5+ {[%emt 0:00:01]} Kd7 52. Rh6 {[%emt 0:00:03]} Ra8 {[%emt 0:00:01]} 53. Rh7+ {[%emt 0:00:02]} Ke6 {[%emt 0:00:02]} 54. Rh6+ {[%emt 0:00:07]} Kd7 55. Rd6+ {[%emt 0:00:01]} Ke7 {[%emt 0:00:03]} 56. Rd8 {[%emt 0:00:04]} Rxd8 {[%emt 0:00:01]} 57. cxd8=Q+ Kxd8 58. h4 {[%emt 0:00:02]} Ke8 59. h5 {[%emt 0:00:01]} Kf7 60. Bd4 {[%emt 0:00:05]} Kg8 61. Kf2 Kh7 62. Kg3 {[%emt 0:00:02]} Kh6 63. Kh4 {[%emt 0:00:04] Kg7} 1-0

[Event "11th LCC Super Blitz 2019"]
[Site "London"]
[Date "2019.12.08"]
[Round "5.9"]
[White "Toh, Q Kane"]
[Black "Rahman, Asad"]
[Result "0-1"]
[ECO "D70"]
[WhiteElo "1606"]
[BlackElo "1923"]
[Annotator "NA"]
[PlyCount "61"]
[EventDate "2019.12.08"]
[EventType "swiss"]
[EventCountry "ENG"]
[SourceTitle "playchess.com"]
[Source "ChessBase"]
[SourceQuality "1"]
[TimeControl "180+2"]

1. d4 {[%emt 0:00:00]} d5 {[%emt 0:00:00]} 2. c4 {[%emt 0:00:00]} c6 {[%emt 0:00:00]} 3. Nf3 {[%emt 0:00:01]} Nf6 {[%emt 0:00:01]} 4. e3 {[%emt 0:00:01]} g6 {[%emt 0:00:01]} 5. Nbd2 {[%emt 0:00:02]} Bg7 {[%emt 0:00:01]} 6. b3 {[%emt 0:00:03]} O-O {[%emt 0:00:02]} 7. Bd3 {[%emt 0:00:01]} Nbd7 {[%emt 0:00:05]} 8. O-O {[%emt 0:00:06]} Re8 {[%emt 0:00:05]} 9. Bb2 {[%emt 0:00:00]} b6 {[%emt 0:00:03]} 10. Qe2 {[%emt 0:00:10]} Bb7 {[%emt 0:00:01]} 11. Rac1 {[%emt 0:00:04]} Rc8 {[%emt 0:00:02]} 12. cxd5 {[%emt 0:00:07]} Nxd5 {[%emt 0:00:04]} 13. Rfd1 {[%emt 0:00:28]} Nb4 {[%emt 0:00:03]} 14. Bb1 {[%emt 0:00:00]} Ba6 {[%emt 0:00:25]} 15. Nc4 {[%emt 0:00:33]} Nf6 {[%emt 0:00:15]} 16. a3 {[%emt 0:00:00]} Nbd5 {[%emt 0:00:02]} 17. Qd2 {[%emt 0:00:06]} Qc7 {[%emt 0:00:14]} 18. b4 {[%emt 0:00:12]} Red8 {[%emt 0:00:19]} 19. Nce5 {[%emt 0:00:02]} Qd6 {[%emt 0:00:18]} 20. e4 {[%emt 0:00:11]} Nxe4 {[%emt 0:00:37]} 21. Bxe4 {[%emt 0:00:02]} f6 {[%emt 0:00:01]} 22. Nc4 {[%emt 0:00:22]} Qe6 {[%emt 0:00:10]} 23. Re1 {[%emt 0:00:23]} Qg4 {[%emt 0:00:01]} 24. Bxd5+ {[%emt 0:00:07]} cxd5 {[%emt 0:00:02]} 25. Ne3 {[%emt 0:00:02]} Qh5 {[%emt 0:00:04]} 26. Rxc8 {[%emt 0:00:04]} Rxc8 27. Rc1 Bc4 {[%emt 0:00:07]} 28. b5 {[%emt 0:00:13]} f5 {[%emt 0:00:06]} 29. Nxd5 {[%emt 0:00:07]} f4 {[%emt 0:00:01]} 30. Nxe7+ {[%emt 0:00:03]} Kf7 {[%emt 0:00:01]} 31. Nxc8 {[%emt 0:00:04]} 0-1